fUSD/lending_fUSD_20240714
["ID","MTS","AMOUNT","RATE_DAILY","PERIOD"]
[332033672,1720939875841,-500.0,0.00013808,2]
[332033673,1720939875850,-500.0,0.00013808,2]
[332033674,1720939875860,-664.06,0.00013808,2]
[332033675,1720939875869,-500.0,0.00013808,2]
[332033676,1720939875878,-500.0,0.00013808,2]
[332033677,1720939875887,-695.32,0.00013808,2]
[332033678,1720939875896,-713.92,0.00013808,2]
[332033679,1720939875905,-500.0,0.00013808,2]
[332033680,1720939875916,-500.0,0.00013808,2]
[332033681,1720939875925,-961.16,0.00013808,2]
[332033682,1720939875934,-500.0,0.00013808,2]
[332033683,1720939875943,-503.92435269,0.00013808,2]
[332033684,1720939875952,-500.0,0.00013808,2]
[332033685,1720939875962,-500.0,0.00013808,2]
[332033686,1720939875971,-500.0,0.00013808,2]
[332033687,1720939875981,-500.0,0.00013808,2]
[332033688,1720939875990,-500.0,0.00013808,2]
[332033689,1720939875999,-500.0,0.00013808,2]
[332033690,1720939876008,-733.72,0.00013808,2]
[332033691,1720939876018,-500.0,0.00013808,2]
[332033692,1720939876027,-500.0,0.00013808,2]
[332033693,1720939876036,-893.62,0.00013808,2]
[332033694,1720939876045,-500.0,0.00013808,2]
[332033695,1720939876054,-728.68,0.00013808,2]
[332033696,1720939876064,-500.0,0.00013808,2]
[332033697,1720939876073,-412.76863344,0.00013808,2]
[332033698,1720939876083,-500.0,0.00013808,2]
[332033699,1720939876092,-681.67,0.00013808,2]
[332033700,1720939876101,-500.0,0.00013808,2]
[332033701,1720939876111,-500.0,0.00013808,2]
[332033702,1720939876120,-500.0,0.00013808,2]
[332033703,1720939876130,-572.72225998,0.00013808,2]
[332033704,1720939876139,-500.0,0.00013808,2]
[332033705,1720939876149,-500.0,0.00013808,2]
[332033706,1720939876158,-500.0,0.00013808,2]
[332033707,1720939876168,-709.45,0.00013808,2]
[332033708,1720939876177,-648.71,0.00013808,2]
[332033709,1720939876187,-500.0,0.00013808,2]
[332033710,1720939876196,-500.0,0.00013808,2]
[332033711,1720939876205,-500.0,0.00013808,2]
[332033712,1720939876215,-500.0,0.00013808,2]
[332033713,1720939876225,-500.0,0.00013808,2]
[332033714,1720939876238,-500.0,0.00013808,2]
[332033715,1720939876248,-1289.21,0.00013808,2]
[332033716,1720939876259,-500.0,0.00013808,2]
[332033717,1720939876269,-500.0,0.00013808,2]
[332033718,1720939876282,-500.0,0.00013808,2]
[332033719,1720939876292,-500.0,0.00013808,2]
[332033720,1720939876303,-500.0,0.00013808,2]
[332033721,1720939876315,-500.0,0.00013808,2]
[332033722,1720939876324,-500.0,0.00013808,2]
[332033723,1720939876334,-616.64,0.00013808,2]
[332033724,1720939876345,-340.44445347,0.00013808,2]
[332033725,1720939876356,-500.0,0.00013808,2]
[332033726,1720939876367,-500.0,0.00013808,2]
[332033727,1720939876377,-500.0,0.00013808,2]
[332033728,1720939876387,-500.0,0.00013808,2]
[332033729,1720939876397,-500.0,0.00013808,2]
[332033730,1720939876407,-500.0,0.00013808,2]
[332033731,1720939876417,-500.0,0.00013808,2]
[332033732,1720939876428,-1005.29,0.00013808,2]
[332033733,1720939876438,-500.0,0.00013808,2]
[332033734,1720939876447,-500.0,0.00013808,2]
[332033735,1720939876457,-618.03,0.00013808,2]
[332033736,1720939876466,-500.0,0.00013808,2]
[332033737,1720939876477,-500.0,0.00013808,2]
[332033738,1720939876487,-500.0,0.00013808,2]
[332033739,1720939876496,-500.0,0.00013808,2]
[332033740,1720939876505,-693.63,0.00013808,2]
[332033741,1720939876515,-500.0,0.00013808,2]
[332033742,1720939876524,-500.0,0.00013808,2]
[332033743,1720939876534,-500.0,0.00013808,2]
[332033744,1720939876544,-500.0,0.00013808,2]
[332033745,1720939876553,-500.0,0.00013808,2]
[332033746,1720939876562,-690.98,0.00013808,2]
[332033747,1720939876571,-500.0,0.00013808,2]
[332033748,1720939876581,-500.0,0.00013808,2]
[332033749,1720939876590,-935.62,0.00013808,2]
[332033750,1720939876599,-500.0,0.00013808,2]
[332033751,1720939876609,-879.38,0.00013808,2]
[332033752,1720939876617,-697.37,0.00013808,2]
[332033753,1720939876627,-500.0,0.00013808,2]
[332033754,1720939876635,-500.0,0.00013808,2]
[332033755,1720939876645,-500.0,0.00013808,2]
[332033756,1720939876655,-500.0,0.00013808,2]
[332033757,1720939876664,-608.73,0.00013808,2]
[332033758,1720939876673,-500.0,0.00013808,2]
[332033759,1720939876682,-500.0,0.00013808,2]
[332033760,1720939876692,-866.49,0.00013808,2]
[332033761,1720939876701,-500.0,0.00013808,2]
[332033762,1720939876710,-500.0,0.00013808,2]
[332033763,1720939876720,-500.0,0.00013808,2]
[332033764,1720939876731,-420.19961876,0.00013808,2]
[332033765,1720939876741,-741.51,0.00013808,2]
[332033766,1720939876751,-500.0,0.00013808,2]
[332033767,1720939876760,-500.0,0.00013808,2]
[332033768,1720939876770,-592.45926745,0.00013808,2]
[332033769,1720939876780,-513.62,0.00013808,2]
[332033770,1720939876789,-500.0,0.00013808,2]
[332033771,1720939876799,-500.0,0.00013808,2]
[332033772,1720939876809,-272.06578043,0.00013808,2]
[332033773,1720939876819,-595.67,0.00013808,2]
[332033774,1720939876828,-496.74371709,0.00013808,2]
[332033775,1720939876837,-500.0,0.00013808,2]
[332033776,1720939876847,-682.34,0.00013808,2]
[332033777,1720939876858,-500.0,0.00013808,2]
[332033778,1720939876868,-500.0,0.00013808,2]
[332033779,1720939876877,-500.0,0.00013808,2]
[332033780,1720939876886,-500.0,0.00013808,2]
[332033781,1720939876895,-500.0,0.00013808,2]
[332033782,1720939876905,-993.65,0.00013808,2]
[332033783,1720939876916,-500.0,0.00013808,2]
[332033784,1720939876926,-500.0,0.00013808,2]
[332033785,1720939876936,-500.0,0.00013808,2]
[332033786,1720939876947,-621.76,0.00013808,2]
[332033787,1720939876958,-500.0,0.00013808,2]
[332033788,1720939876969,-702.32,0.00013808,2]
[332033789,1720939876980,-506.29,0.00013808,2]
[332033790,1720939876992,-500.0,0.00013808,2]
[332033791,1720939877002,-500.0,0.00013808,2]
[332033792,1720939877012,-500.0,0.00013808,2]
[332033793,1720939877021,-500.0,0.00013808,2]
[332033794,1720939877031,-989.06,0.00013808,2]
[332033795,1720939877041,-500.0,0.00013808,2]
[332033796,1720939877050,-510.34454376,0.00013808,2]
[332033797,1720939877061,-500.0,0.00013808,2]
[332033798,1720939877071,-500.0,0.00013808,2]
[332033799,1720939877082,-1484.95,0.00013808,2]
[332033800,1720939877092,-500.0,0.00013808,2]
[332033801,1720939877102,-727.25,0.00013808,2]
[332033802,1720939877113,-500.0,0.00013808,2]
[332033803,1720939877123,-500.0,0.00013808,2]
[332033804,1720939877133,-500.0,0.00013808,2]
[332033805,1720939877143,-500.0,0.00013808,2]
[332033806,1720939877153,-516.29,0.00013808,2]
[332033807,1720939877164,-500.0,0.00013808,2]
[332033808,1720939877175,-886.25,0.00013808,2]
[332033809,1720939877187,-500.0,0.00013808,2]
[332033810,1720939877197,-500.0,0.00013808,2]
[332033811,1720939877208,-500.0,0.00013808,2]
[332033812,1720939877218,-753.18,0.00013808,2]
[332033813,1720939877231,-500.0,0.00013808,2]
[332033814,1720939877242,-500.0,0.00013808,2]
[332033815,1720939877252,-500.0,0.00013808,2]
[332033816,1720939877262,-500.0,0.00013808,2]
[332033817,1720939877271,-500.0,0.00013808,2]
[332033818,1720939877280,-323.4806616,0.00013808,2]
[332033819,1720939877289,-751.76,0.00013808,2]
[332033820,1720939877299,-500.0,0.00013808,2]
[332033821,1720939877308,-500.0,0.00013808,2]
[332033822,1720939877319,-500.0,0.00013808,2]
[332033823,1720939877329,-500.0,0.00013808,2]
[332033824,1720939877338,-500.0,0.00013808,2]
[332033825,1720939877348,-1038.6,0.00013808,2]
[332033826,1720939877357,-500.0,0.00013808,2]
[332033827,1720939877366,-807.03,0.00013808,2]
[332033828,1720939877376,-500.0,0.00013808,2]
[332033829,1720939877385,-909.51,0.00013808,2]
[332033830,1720939877395,-500.0,0.00013808,2]
[332033831,1720939877404,-500.0,0.00013808,2]
[332033832,1720939877413,-500.0,0.00013808,2]
[332033833,1720939877422,-500.0,0.00013808,2]
[332033834,1720939877431,-500.0,0.00013808,2]
[332033835,1720939877440,-500.0,0.00013808,2]
[332033836,1720939877450,-500.0,0.00013808,2]
[332033837,1720939877459,-500.0,0.00013808,2]
[332033838,1720939877469,-500.0,0.00013808,2]
[332033839,1720939877479,-500.0,0.00013808,2]
[332033840,1720939877488,-500.0,0.00013808,2]
[332033841,1720939877497,-500.0,0.00013808,2]
[332033842,1720939877508,-500.0,0.00013808,2]
[332033843,1720939877518,-500.0,0.00013808,2]
[332033844,1720939877527,-500.0,0.00013808,2]
[332033845,1720939877537,-500.0,0.00013808,2]
[332033846,1720939877547,-841.01,0.00013808,2]
[332033847,1720939877556,-699.75,0.00013808,2]
[332033848,1720939877566,-772.57,0.00013808,2]
[332033849,1720939877576,-500.0,0.00013808,2]
[332033850,1720939877585,-536.61,0.00013808,2]
[332033851,1720939877595,-500.0,0.00013808,2]
[332033852,1720939877775,-538.36,0.00013808,2]
[332033853,1720939877791,-520.61,0.00013808,2]
[332033854,1720939877801,-630.19,0.00013808,2]
[332033855,1720939877811,-500.0,0.00013808,2]
[332033856,1720939877821,-500.0,0.00013808,2]
[332033857,1720939877830,-838.79,0.00013808,2]
[332033858,1720939877840,-500.0,0.00013808,2]
[332033859,1720939877849,-512.75,0.00013808,2]
[332033860,1720939877859,-500.0,0.00013808,2]
[332033861,1720939877868,-500.0,0.00013808,2]
[332033862,1720939877878,-1190.72,0.00013808,2]
[332033863,1720939877888,-531.12,0.00013808,2]
[332033864,1720939877898,-534.18,0.00013808,2]
[332033865,1720939877908,-500.0,0.00013808,2]
[332033866,1720939877919,-500.0,0.00013808,2]
[332033867,1720939877929,-500.0,0.00013808,2]
[332033868,1720939877938,-765.65,0.00013808,2]
[332033869,1720939877948,-500.0,0.00013808,2]
[332033870,1720939877958,-517.58,0.00013808,2]
[332033871,1720939877967,-293.73673058,0.00013808,2]
[332033872,1720939877978,-500.0,0.00013808,2]
[332033873,1720939877988,-500.0,0.00013808,2]
[332033874,1720939877998,-500.0,0.00013808,2]
[332033875,1720939878008,-526.38,0.00013808,2]
[332033876,1720939878017,-500.0,0.00013808,2]
[332033877,1720939878027,-500.0,0.00013808,2]
[332033878,1720939878036,-500.0,0.00013808,2]
[332033879,1720939878046,-564.84,0.00013808,2]
[332033880,1720939878055,-500.0,0.00013808,2]
[332033881,1720939878065,-504.84,0.00013808,2]
[332033882,1720939878075,-1034.64,0.00013808,2]
[332033883,1720939878084,-500.0,0.00013808,2]
[332033884,1720939878094,-500.0,0.00013808,2]
[332033885,1720939878104,-500.0,0.00013808,2]
[332033886,1720939878113,-500.0,0.00013808,2]
[332033887,1720939878123,-500.0,0.00013808,2]
[332033888,1720939878133,-500.0,0.00013808,2]
[332033889,1720939878143,-503.64,0.00013808,2]
[332033890,1720939878153,-500.0,0.00013808,2]
[332033891,1720939878163,-500.0,0.00013808,2]
[332033892,1720939878173,-500.0,0.00013808,2]
[332033893,1720939878182,-500.0,0.00013808,2]
[332033894,1720939878192,-561.31,0.00013808,2]
[332033895,1720939878202,-500.0,0.00013808,2]
[332033896,1720939878211,-581.12,0.00013808,2]
[332033897,1720939878220,-500.0,0.00013808,2]
[332033898,1720939878231,-500.0,0.00013808,2]
[332033899,1720939878241,-500.0,0.00013808,2]
[332033900,1720939878251,-500.0,0.00013808,2]
[332033901,1720939878260,-500.0,0.00013808,2]
[332033902,1720939878270,-912.75,0.00013808,2]
[332033903,1720939878281,-621.76277041,0.00013808,2]
[332033904,1720939878290,-1459.97,0.00013808,2]
[332033905,1720939878300,-586.6577521,0.00013808,2]
[332033906,1720939878311,-500.0,0.00013808,2]
[332033907,1720939878321,-500.0,0.00013808,2]
[332033908,1720939878330,-500.0,0.00013808,2]
[332033909,1720939878340,-500.0,0.00013808,2]
[332033910,1720939878349,-500.0,0.00013808,2]
[332033911,1720939878359,-847.08,0.00013808,2]
[332033912,1720939878369,-500.0,0.00013808,2]
[332033913,1720939878378,-1019.23,0.00013808,2]
[332033914,1720939878388,-730.45,0.00013808,2]
[332033915,1720939878398,-500.0,0.00013808,2]
[332033916,1720939878408,-511.63,0.00013808,2]
[332033917,1720939878417,-500.0,0.00013808,2]
[332033918,1720939878426,-4533.09,0.00013808,2]
[332033919,1720939878435,-500.0,0.00013808,2]
[332033920,1720939878445,-500.0,0.00013808,2]
[332033921,1720939878455,-571.87,0.00013808,2]
[332033922,1720939878465,-222.88983847,0.00013808,2]
[332033923,1720939878475,-500.0,0.00013808,2]
[332033924,1720939878486,-823.77,0.00013808,2]
[332033925,1720939878497,-500.0,0.00013808,2]
[332033926,1720939878508,-500.0,0.00013808,2]
[332033927,1720939878518,-500.0,0.00013808,2]
[332033928,1720939878528,-599.44,0.00013808,2]
[332033929,1720939878538,-823.21,0.00013808,2]
[332033930,1720939878548,-500.0,0.00013808,2]
[332033931,1720939878558,-500.0,0.00013808,2]
[332033932,1720939878568,-4911.47,0.00013808,2]
[332033933,1720939878578,-500.0,0.00013808,2]
[332033934,1720939878588,-500.0,0.00013808,2]
[332033935,1720939878598,-1223.5,0.00013808,2]
[332033936,1720939878608,-500.0,0.00013808,2]
[332033937,1720939878617,-500.0,0.00013808,2]
[332033938,1720939878628,-500.0,0.00013808,2]
[332033939,1720939878638,-500.0,0.00013808,2]
[332033940,1720939878648,-500.0,0.00013808,2]
[332033941,1720939878658,-727.75,0.00013808,2]
[332033942,1720939878669,-500.0,0.00013808,2]
[332033943,1720939878678,-500.0,0.00013808,2]
[332033944,1720939878689,-500.0,0.00013808,2]
[332033945,1720939878699,-527.31722657,0.00013808,2]
[332033946,1720939878708,-500.0,0.00013808,2]
[332033947,1720939878718,-500.0,0.00013808,2]
[332033948,1720939878729,-500.0,0.00013808,2]
[332033949,1720939878739,-500.0,0.00013808,2]
[332033950,1720939878749,-500.0,0.00013808,2]
[332033951,1720939878759,-500.0,0.00013808,2]
[332033952,1720939878769,-500.0,0.00013808,2]
[332033953,1720939878779,-500.0,0.00013808,2]
[332033954,1720939878789,-500.0,0.00013808,2]
[332033955,1720939878798,-500.0,0.00013808,2]
[332033956,1720939878807,-500.0,0.00013808,2]
[332033957,1720939878817,-500.0,0.00013808,2]
[332033958,1720939878827,-500.0,0.00013808,2]
[332033959,1720939878836,-500.0,0.00013808,2]
[332033960,1720939878846,-500.0,0.00013808,2]
[332033961,1720939878855,-500.0,0.00013808,2]
[332033962,1720939878865,-696.2,0.00013808,2]
[332033963,1720939878874,-443.13342699,0.00013808,2]
[332033964,1720939878884,-500.0,0.00013808,2]
[332033965,1720939878893,-500.0,0.00013808,2]
[332033966,1720939878902,-500.0,0.00013808,2]
[332033967,1720939878912,-500.0,0.00013808,2]
[332033968,1720939878922,-500.0,0.00013808,2]
[332033969,1720939878931,-500.0,0.00013808,2]
[332033970,1720939878941,-500.0,0.00013808,2]
[332033971,1720939878950,-500.0,0.00013808,2]
[332033972,1720939878959,-500.0,0.00013808,2]
[332033973,1720939878969,-500.0,0.00013808,2]
[332033974,1720939878979,-500.0,0.00013808,2]
[332033975,1720939878988,-774.58,0.00013808,2]
[332033976,1720939878998,-500.0,0.00013808,2]
[332033977,1720939879007,-721.14,0.00013808,2]
[332033978,1720939879016,-500.0,0.00013808,2]
[332033979,1720939879026,-500.0,0.00013808,2]
[332033980,1720939879035,-549.63,0.00013808,2]
[332033981,1720939879045,-500.0,0.00013808,2]
[332033982,1720939879054,-617.45,0.00013808,2]
[332033983,1720939879063,-602.57,0.00013808,2]
[332033984,1720939879073,-500.0,0.00013808,2]
[332033985,1720939879082,-502.89,0.00013808,2]
[332033986,1720939879092,-645.55,0.00013808,2]
[332033987,1720939879102,-500.0,0.00013808,2]
[332033988,1720939879111,-500.0,0.00013808,2]
[332033989,1720939879121,-500.0,0.00013808,2]
[332033990,1720939879131,-489.27701835,0.00013808,2]
[332033991,1720939879141,-770.09,0.00013808,2]
[332033992,1720939879151,-500.0,0.00013808,2]
[332033993,1720939879161,-500.0,0.00013808,2]
[332033994,1720939879170,-500.0,0.00013808,2]
[332033995,1720939879180,-583.44,0.00013808,2]
[332033996,1720939879189,-500.0,0.00013808,2]
[332033997,1720939879199,-681.33,0.00013808,2]
[332033998,1720939879208,-500.0,0.00013808,2]
[332033999,1720939879217,-500.0,0.00013808,2]
[332034000,1720939879229,-538.45,0.00013808,2]
[332034001,1720939879241,-500.0,0.00013808,2]
[332034002,1720939879250,-500.0,0.00013808,2]
[332034003,1720939879260,-501.77,0.00013808,2]
[332034004,1720939879269,-500.0,0.00013808,2]
[332034005,1720939879281,-975.03,0.00013808,2]
[332034006,1720939879291,-500.0,0.00013808,2]
[332034007,1720939879300,-500.0,0.00013808,2]
[332034008,1720939879310,-772.65,0.00013808,2]
[332034009,1720939879320,-542.17,0.00013808,2]
[332034010,1720939879330,-500.0,0.00013808,2]
[332034011,1720939879339,-805.22,0.00013808,2]
[332034012,1720939879349,-500.0,0.00013808,2]
[332034013,1720939879358,-500.0,0.00013808,2]
[332034014,1720939879367,-500.0,0.00013808,2]
[332034015,1720939879376,-500.0,0.00013808,2]
[332034016,1720939879386,-813.22,0.00013808,2]
[332034017,1720939879396,-900.95,0.00013808,2]
[332034018,1720939879405,-500.0,0.00013808,2]
[332034019,1720939879415,-500.0,0.00013808,2]
[332034020,1720939879424,-500.0,0.00013808,2]
[332034021,1720939879434,-500.0,0.00013808,2]
[332034022,1720939879443,-500.0,0.00013808,2]
[332034023,1720939879453,-500.0,0.00013808,2]
[332034024,1720939879463,-1107.83,0.00013808,2]
[332034025,1720939879472,-500.0,0.00013808,2]
[332034026,1720939879483,-500.0,0.00013808,2]
[332034027,1720939879493,-500.0,0.00013808,2]
[332034028,1720939879503,-500.0,0.00013808,2]
[332034029,1720939879512,-500.0,0.00013808,2]
[332034030,1720939879522,-500.0,0.00013808,2]
[332034031,1720939879531,-500.0,0.00013808,2]
[332034032,1720939879541,-500.0,0.00013808,2]
[332034033,1720939879550,-500.0,0.00013808,2]
[332034034,1720939879560,-500.0,0.00013808,2]
[332034035,1720939879569,-500.0,0.00013808,2]
[332034036,1720939879579,-500.0,0.00013808,2]
[332034037,1720939879588,-500.0,0.00013808,2]
[332034038,1720939879598,-500.0,0.00013808,2]
[332034039,1720939879607,-500.0,0.00013808,2]
[332034040,1720939879617,-500.0,0.00013808,2]
[332034041,1720939879627,-500.0,0.00013808,2]
[332034042,1720939879636,-600.41,0.00013808,2]
[332034043,1720939879647,-505.3,0.00013808,2]
[332034044,1720939879657,-500.0,0.00013808,2]
[332034045,1720939879666,-728.77,0.00013808,2]
[332034046,1720939879676,-500.0,0.00013808,2]
[332034047,1720939879686,-500.0,0.00013808,2]
[332034048,1720939879696,-166.63968142,0.00013808,2]
[332034049,1720939879707,-734.59,0.00013808,2]
[332034050,1720939879717,-630.94,0.00013808,2]
[332034051,1720939879728,-500.0,0.00013808,2]
[332034052,1720939879737,-500.0,0.00013808,2]
[332034053,1720939879747,-500.0,0.00013808,2]
[332034054,1720939879757,-529.33,0.00013808,2]
[332034055,1720939879767,-500.0,0.00013808,2]
[332034056,1720939879778,-500.0,0.00013808,2]
[332034057,1720939879788,-500.0,0.00013808,2]
[332034058,1720939879799,-1131.39,0.00013808,2]
[332034059,1720939879810,-500.0,0.00013808,2]
[332034060,1720939879821,-824.75,0.00013808,2]
[332034061,1720939879831,-500.0,0.00013808,2]
[332034062,1720939879842,-500.0,0.00013808,2]
[332034063,1720939879852,-697.54,0.00013808,2]
[332034064,1720939879862,-846.87,0.00013808,2]
[332034065,1720939879871,-640.02,0.00013808,2]
[332034066,1720939879881,-500.0,0.00013808,2]
[332034067,1720939879891,-500.0,0.00013808,2]
[332034068,1720939879901,-279.27065103,0.00013808,2]
[332034069,1720939879911,-500.0,0.00013808,2]
[332034070,1720939879920,-500.0,0.00013808,2]
[332034071,1720939879930,-504.39527308,0.00013808,2]
[332034072,1720939879940,-500.0,0.00013808,2]
[332034073,1720939879950,-500.0,0.00013808,2]
[332034074,1720939879960,-500.0,0.00013808,2]
[332034075,1720939879970,-500.0,0.00013808,2]
[332034076,1720939879981,-500.0,0.00013808,2]
[332034077,1720939879990,-533.44,0.00013808,2]
[332034078,1720939880000,-500.0,0.00013808,2]
[332034079,1720939880010,-500.0,0.00013808,2]
[332034080,1720939880020,-500.0,0.00013808,2]
[332034081,1720939880030,-500.0,0.00013808,2]
[332034082,1720939880039,-500.0,0.00013808,2]
[332034083,1720939880049,-500.0,0.00013808,2]
[332034084,1720939880059,-1262.47,0.00013808,2]
[332034085,1720939880068,-500.0,0.00013808,2]
[332034086,1720939880078,-648.9,0.00013808,2]
[332034087,1720939880087,-500.0,0.00013808,2]
[332034088,1720939880096,-500.0,0.00013808,2]
[332034089,1720939880106,-675.27,0.00013808,2]
[332034090,1720939880115,-500.0790674,0.00013808,2]
[332034091,1720939880125,-500.0,0.00013808,2]
[332034092,1720939880134,-500.0,0.00013808,2]
[332034093,1720939880144,-1031.81,0.00013808,2]
[332034094,1720939880153,-500.0,0.00013808,2]
[332034095,1720939880163,-500.0,0.00013808,2]
[332034096,1720939880172,-526.43,0.00013808,2]
[332034097,1720939880181,-503.38,0.00013808,2]
[332034098,1720939880191,-500.0,0.00013808,2]
[332034099,1720939880201,-974.44,0.00013808,2]
[332034100,1720939880272,-1203.0,0.00013808,2]
[332034101,1720939880282,-611.34,0.00013808,2]
[332034102,1720939880291,-530.41,0.00013808,2]
[332034103,1720939880300,-709.84,0.00013808,2]
[332034104,1720939880311,-500.0,0.00013808,2]
[332034105,1720939880321,-500.0,0.00013808,2]
[332034106,1720939880330,-500.0,0.00013808,2]
[332034107,1720939880340,-500.0,0.00013808,2]
[332034108,1720939880350,-810.84,0.00013808,2]
[332034109,1720939880359,-429.70269297,0.00013808,2]
[332034110,1720939880368,-500.0,0.00013808,2]
[332034111,1720939880378,-529.53,0.00013808,2]
[332034112,1720939880387,-500.0,0.00013808,2]
[332034113,1720939880397,-516.59,0.00013808,2]
[332034114,1720939880407,-500.0,0.00013808,2]
[332034115,1720939880416,-500.0,0.00013808,2]
[332034116,1720939880425,-505.66340659,0.00013808,2]
[332034117,1720939880435,-500.0,0.00013808,2]
[332034118,1720939880444,-549.47,0.00013808,2]
[332034119,1720939880454,-500.0,0.00013808,2]
[332034120,1720939880464,-500.0,0.00013808,2]
[332034121,1720939880473,-1495.77,0.00013808,2]
[332034122,1720939880483,-500.0,0.00013808,2]
[332034123,1720939880492,-500.0,0.00013808,2]
[332034124,1720939880502,-661.28,0.00013808,2]
[332034125,1720939880511,-500.0,0.00013808,2]
[332034126,1720939880521,-500.0,0.00013808,2]
[332034127,1720939880530,-500.0,0.00013808,2]
[332034128,1720939880539,-500.0,0.00013808,2]
[332034129,1720939880548,-796.47,0.00013808,2]
[332034130,1720939880557,-500.0,0.00013808,2]
[332034131,1720939880567,-500.0,0.00013808,2]
[332034132,1720939880575,-500.0,0.00013808,2]
[332034133,1720939880585,-500.0,0.00013808,2]
[332034134,1720939880594,-1345.65,0.00013808,2]
[332034135,1720939880603,-500.0,0.00013808,2]
[332034136,1720939880612,-980.38,0.00013808,2]
[332034137,1720939880622,-1570.51,0.00013808,2]
[332034138,1720939880631,-506.72,0.00013808,2]
[332034139,1720939880641,-500.0,0.00013808,2]
[332034140,1720939880650,-500.0,0.00013808,2]
[332034141,1720939880659,-500.0,0.00013808,2]
[332034142,1720939880669,-500.0,0.00013808,2]
[332034143,1720939880678,-511.92,0.00013808,2]
[332034144,1720939880688,-500.0,0.00013808,2]
[332034145,1720939880697,-500.0,0.00013808,2]
[332034146,1720939880707,-500.0,0.00013808,2]
[332034147,1720939880717,-500.0,0.00013808,2]
[332034148,1720939880727,-649.9,0.00013808,2]
[332034149,1720939880736,-500.0,0.00013808,2]
[332034150,1720939880746,-500.0,0.00013808,2]
[332034151,1720939880756,-847.36,0.00013808,2]
[332034152,1720939880765,-500.0,0.00013808,2]
[332034153,1720939880775,-500.0,0.00013808,2]
[332034154,1720939880784,-500.0,0.00013808,2]
[332034155,1720939880794,-500.0,0.00013808,2]
[332034156,1720939880803,-5441.7,0.00013808,2]
[332034157,1720939880812,-500.0,0.00013808,2]
[332034158,1720939880822,-633.63822302,0.00013808,2]
[332034159,1720939880831,-500.0,0.00013808,2]
[332034160,1720939880840,-500.0,0.00013808,2]
[332034161,1720939880849,-500.0,0.00013808,2]
[332034162,1720939880858,-500.0,0.00013808,2]
[332034163,1720939880867,-500.0,0.00013808,2]
[332034164,1720939880877,-461.18511508,0.00013808,2]
[332034165,1720939880886,-500.0,0.00013808,2]
[332034166,1720939880896,-500.0,0.00013808,2]
[332034167,1720939880905,-500.0,0.00013808,2]
[332034168,1720939880915,-1680.79,0.00013808,2]
[332034169,1720939880925,-500.0,0.00013808,2]
[332034170,1720939880934,-2626.52,0.00013808,2]
[332034171,1720939880944,-500.0,0.00013808,2]